fUST/lending_fUST_20240628
["ID","MTS","AMOUNT","RATE_DAILY","PERIOD"]
[330497450,1719515440441,-500.0,0.00043835,120]
[330497451,1719515440450,-500.0,0.00043835,120]
[330497452,1719515440459,-500.0,0.00043835,120]
[330497453,1719515440468,-500.0,0.00043835,120]
[330497454,1719515440478,-500.0,0.00043835,120]
[330497455,1719515440487,-500.0,0.00043835,120]
[330497456,1719515440497,-500.0,0.00043835,120]
[330497457,1719515440508,-329.8143246,0.00043835,120]
[330497458,1719515440517,-500.0,0.00043835,120]
[330497459,1719515440527,-500.0,0.00043835,120]
[330497460,1719515440536,-500.0,0.00043835,120]
[330497461,1719515440546,-543.69715701,0.00043835,120]
[330497462,1719515440555,-502.81883237,0.00043835,120]
[330497463,1719515440564,-582.46,0.00043835,120]
[330497464,1719515440574,-381.63164259,0.00043835,120]
[330497465,1719515440583,-500.0,0.00043835,120]
[330497466,1719515440593,-500.0,0.00043835,120]
[330497467,1719515440602,-501.24474331,0.00043835,120]
[330497468,1719515440611,-500.0,0.00043835,120]
[330497469,1719515440621,-500.0,0.00043835,120]
[330497470,1719515440630,-500.0,0.00043835,120]
[330497471,1719515440641,-549.51210646,0.00043835,120]
[330497472,1719515440650,-500.74451318,0.00043835,120]
[330497473,1719515440659,-500.0,0.00043835,120]
[330497474,1719515440669,-500.0,0.00043835,120]
[330497475,1719515440679,-500.0,0.00043835,120]
[330497476,1719515440688,-500.0,0.00043835,120]
[330497477,1719515440698,-390.5733644,0.00043835,120]
[330497478,1719515440707,-500.0,0.00043835,120]
[330497479,1719515440717,-442.7511851,0.00043835,120]
[330497480,1719515440726,-500.0,0.00043835,120]
[330497481,1719515440736,-500.0,0.00043835,120]
[330497482,1719515440745,-500.0,0.00043835,120]
[330497483,1719515440754,-500.0,0.00043835,120]
[330497484,1719515440764,-500.0,0.00043835,120]
[330497485,1719515440773,-500.0,0.00043835,120]
[330497486,1719515440782,-500.0,0.00043835,120]
[330497487,1719515440792,-500.29287659,0.00043835,2]
[330497488,1719515440801,-500.0,0.00043835,7]
[330497489,1719515440812,-500.0,0.00043835,120]
[330497490,1719515440821,-500.0,0.00043835,120]
[330497491,1719515440831,-500.0,0.00043835,120]
[330497492,1719515440840,-500.0,0.00043835,120]
[330497493,1719515440850,-500.0,0.00043835,120]
[330497494,1719515440860,-500.0,0.00043835,120]
[330497495,1719515440871,-502.43994685,0.00043835,120]
[330497496,1719515440880,-511.8551374,0.00043835,120]
[330497497,1719515440891,-535.46,0.00043835,120]
[330497498,1719515440900,-500.0,0.00043835,120]
[330497499,1719515440909,-501.21398743,0.00043835,120]
[330497500,1719515440918,-500.0,0.00043835,120]
[330497501,1719515440928,-500.0,0.00043835,120]
[330497502,1719515440938,-500.0,0.00043835,120]
[330497503,1719515440948,-500.0,0.00043835,120]
[330497504,1719515440958,-500.0,0.00043835,120]
[330497505,1719515440967,-1237.66,0.00043835,120]
[330497506,1719515440977,-500.0,0.00043835,120]
[330497507,1719515440987,-200.0,0.00043835,7]
[330497508,1719515440997,-500.0,0.00043835,120]
[330497509,1719515441007,-500.0,0.00043835,120]
[330497510,1719515441016,-522.39831363,0.00043835,120]
[330497511,1719515441026,-501.54,0.00043835,120]
[330497512,1719515441035,-500.0,0.00043835,120]
[330497513,1719515441045,-500.0,0.00043835,120]
[330497514,1719515441054,-500.0,0.00043835,120]
[330497515,1719515441064,-500.0,0.00043835,120]
[330497516,1719515441073,-1077.16,0.00043835,120]
[330497517,1719515441083,-500.0,0.00043835,120]
[330497518,1719515441093,-500.0,0.00043835,2]
[330497519,1719515441104,-623.67,0.00043835,120]
[330497520,1719515441115,-500.0,0.00043835,120]
[330497521,1719515441124,-500.0,0.00043835,120]
[330497522,1719515441134,-500.0,0.00043835,120]
[330497523,1719515441146,-500.0,0.00043835,120]
[330497524,1719515441155,-500.0,0.00043835,120]
[330497525,1719515441165,-500.0,0.00043835,120]
[330497526,1719515441174,-271.85141325,0.00043835,120]
[330497527,1719515441187,-500.0,0.00043835,120]
[330497528,1719515441196,-500.0,0.00043835,120]
[330497529,1719515441206,-500.0,0.00043835,120]
[330497530,1719515441216,-500.0,0.00043835,120]
[330497531,1719515441225,-500.0,0.00043835,120]
[330497532,1719515441236,-500.0,0.00043835,120]
[330497533,1719515441245,-500.0,0.00043835,120]
[330497534,1719515441255,-589.01,0.00043835,120]
[330497535,1719515441264,-500.0,0.00043835,120]
[330497536,1719515441377,-500.0,0.00043835,120]
[330497537,1719515441388,-503.91523264,0.00043835,120]
[330497538,1719515441397,-500.0,0.00043835,120]
[330497539,1719515441406,-500.0,0.00043835,120]
[330497540,1719515441416,-500.0,0.00043835,120]
[330497541,1719515441426,-500.0,0.00043835,30]
[330497542,1719515441435,-500.0,0.00043835,120]
[330497543,1719515441444,-500.0,0.00043835,120]
[330497544,1719515441453,-500.0,0.00043835,120]
[330497545,1719515441463,-500.0,0.00043835,120]
[330497546,1719515441471,-500.34468016,0.00043835,120]
[330497547,1719515441481,-500.0,0.00043835,120]
[330497548,1719515441490,-500.0,0.00043835,3]
[330497549,1719515441499,-505.00309004,0.00043835,120]
[330497550,1719515441509,-500.0,0.00043835,120]
[330497551,1719515441519,-500.0,0.00043835,120]
[330497552,1719515441528,-500.0,0.00043835,120]
[330497553,1719515441537,-500.0,0.00043835,120]
[330497554,1719515441546,-502.83949842,0.00043835,120]
[330497555,1719515441555,-500.0,0.00043835,120]
[330497556,1719515441564,-500.0,0.00043835,30]
[330497557,1719515441573,-500.0,0.00043835,30]
[330497558,1719515441583,-500.0,0.00043835,120]
[330497559,1719515441592,-500.83261166,0.00043835,120]
[330497560,1719515441602,-500.0,0.00043835,120]
[330497561,1719515441611,-844.98,0.00043835,120]
[330497562,1719515441620,-500.0,0.00043835,120]
[330497563,1719515441629,-742.01,0.00043835,120]
[330497564,1719515441640,-500.0,0.00043835,120]
[330497565,1719515441649,-500.0,0.00043835,120]
[330497566,1719515441657,-175.87138533,0.00043835,120]
[330497567,1719515441666,-752.43,0.00043835,120]
[330497568,1719515441675,-544.44818768,0.00043835,120]
[330497569,1719515441684,-446.57553104,0.00043835,120]
[330497570,1719515441694,-500.0,0.00043835,120]
[330497571,1719515441703,-500.0,0.00043835,120]
[330497572,1719515441712,-500.0,0.00043835,7]
[330497574,1719515441722,-1004.41735524,0.00043835,120]
[330497576,1719515441731,-500.0,0.00043835,120]
[330497578,1719515441740,-200.04541086,0.00043835,120]
[330497580,1719515441750,-638.59,0.00043835,120]
[330497582,1719515441759,-500.0,0.00043835,120]
[330497584,1719515441769,-500.0,0.00043835,120]
[330497585,1719515441779,-500.0,0.00043835,2]
[330497587,1719515441788,-500.0,0.00043835,120]
[330497589,1719515441797,-500.0,0.00043835,120]
[330497591,1719515441806,-500.0,0.00043835,120]
[330497593,1719515441815,-500.0,0.00043835,120]
[330497594,1719515441824,-500.0,0.00043835,120]
[330497596,1719515441833,-500.0,0.00043835,120]
[330497598,1719515441843,-500.0,0.00043835,120]
[330497600,1719515441853,-443.33691177,0.00043835,120]
[330497602,1719515441863,-500.0,0.00043835,120]
[330497604,1719515441872,-500.0,0.00043835,2]
[330497605,1719515441882,-412.52293929,0.00043835,120]
[330497607,1719515441893,-500.0,0.00043835,120]
[330497609,1719515441903,-500.0,0.00043835,120]
[330497611,1719515441912,-500.0,0.00043835,120]
[330497613,1719515441922,-500.0,0.00043835,120]
[330497614,1719515441932,-500.0,0.00043835,120]
[330497616,1719515441942,-500.0,0.00043835,120]
[330497618,1719515441952,-500.0,0.00043835,120]
[330497620,1719515441962,-500.0,0.00043835,120]
[330497622,1719515441973,-500.0,0.00043835,120]
[330497623,1719515441982,-500.0,0.00043835,120]
[330497625,1719515441992,-500.0,0.00043835,120]
[330497627,1719515442001,-500.0,0.00043835,120]
[330497629,1719515442010,-500.0,0.00043835,120]
[330497631,1719515442019,-500.0,0.00043835,120]
[330497633,1719515442028,-500.0,0.00043835,120]
[330497634,1719515442037,-500.0,0.00043835,120]
[330497635,1719515442046,-500.0,0.00043835,120]
[330497636,1719515442056,-500.0,0.00043835,120]
[330497637,1719515442065,-500.0,0.00043835,120]
[330497638,1719515442074,-651.97,0.00043835,120]
[330497639,1719515442083,-500.0,0.00043835,120]
[330497640,1719515442092,-500.0,0.00043835,120]
[330497641,1719515442102,-500.0,0.00043835,120]
[330497643,1719515442116,-205.21124159,0.00043835,120]
[330497645,1719515442125,-521.73840409,0.00043835,120]
[330497647,1719515442134,-500.0,0.00043835,120]
[330497649,1719515442146,-600.28326666,0.00043835,120]
[330497650,1719515442157,-503.39520476,0.00043835,120]
[330497652,1719515442167,-85.77894198,0.00043835,120]
[330497655,1719515442196,-230.84692815,0.00043835,120]
[330497657,1719515442205,-500.0,0.00043835,120]
[330497659,1719515442215,-639.45,0.00043835,120]
[330497660,1719515442224,-500.0,0.00043835,120]
[330497661,1719515442233,-500.0,0.00043835,120]
[330497662,1719515442242,-500.0,0.00043835,120]
[330497663,1719515442251,-500.0,0.00043835,120]
[330497664,1719515442260,-500.0,0.00043835,120]
[330497665,1719515442270,-500.0,0.00043835,120]
[330497666,1719515442280,-500.0,0.00043835,120]
[330497667,1719515442290,-891.88,0.00043835,120]
[330497668,1719515442299,-709.97,0.00043835,120]
[330497669,1719515442308,-500.0,0.00043835,120]
[330497670,1719515442317,-416.5541721,0.00043835,120]
[330497671,1719515442327,-1030.86,0.00043835,120]
[330497672,1719515442336,-500.0,0.00043835,120]
[330497673,1719515442345,-500.0,0.00043835,120]
[330497674,1719515442354,-500.0,0.00043835,120]
[330497675,1719515442364,-500.0,0.00043835,120]
[330497676,1719515442374,-1665.36,0.00043835,120]
[330497677,1719515442383,-500.0,0.00043835,120]
[330497678,1719515442395,-500.0,0.00043835,120]
[330497679,1719515442404,-500.0,0.00043835,120]
[330497680,1719515442414,-500.0,0.00043835,120]
[330497681,1719515442424,-500.0,0.00043835,120]
[330497682,1719515442433,-500.86142838,0.00043835,120]
[330497683,1719515442443,-500.0,0.00043835,120]
[330497684,1719515442453,-500.0,0.00043835,120]
[330497685,1719515442462,-500.0,0.00043835,7]
[330497686,1719515442471,-500.0,0.00043835,120]
[330497687,1719515442480,-610.94209197,0.00043835,120]
[330497688,1719515442489,-500.0,0.00043835,120]
[330497689,1719515442498,-500.0,0.00043835,7]
[330497690,1719515442507,-500.0,0.00043835,7]
[330497691,1719515442517,-500.0,0.00043835,120]
[330497692,1719515442527,-838.64,0.00043835,120]
[330497693,1719515442537,-500.0,0.00043835,120]
[330497694,1719515442548,-626.49979555,0.00043835,7]
[330497695,1719515442557,-500.0,0.00043835,120]
[330497696,1719515442567,-500.0,0.00043835,120]
[330497697,1719515442576,-1134.36,0.00043835,120]
[330497698,1719515442586,-500.0,0.00043835,120]
[330497699,1719515442595,-500.0,0.00043835,120]
[330497700,1719515442605,-500.0,0.00043835,120]
[330497701,1719515442615,-500.0,0.00043835,120]
[330497702,1719515442625,-500.0,0.00043835,120]
[330497703,1719515442634,-500.0,0.00043835,120]
[330497704,1719515442645,-500.0,0.00043835,120]
[330497705,1719515442654,-500.0,0.00043835,120]
[330497706,1719515442664,-500.0,0.00043835,120]
[330497707,1719515442674,-500.0,0.00043835,120]
[330497708,1719515442683,-523.82554385,0.00043835,120]
[330497709,1719515442693,-501.93921959,0.00043835,120]
[330497710,1719515442702,-501.80945287,0.00043835,30]
[330497711,1719515442712,-500.0,0.00043835,120]
[330497712,1719515442721,-226.68176247,0.00043835,120]
[330497713,1719515442731,-151.0,0.00043835,14]
[330497714,1719515442740,-151.0,0.00043835,14]
[330497715,1719515442750,-151.0,0.00043835,14]
[330497716,1719515442760,-500.0,0.00043835,120]
[330497717,1719515442770,-217.014462,0.00043835,14]
[330497718,1719515442780,-500.0,0.00043835,120]
[330497719,1719515442789,-500.0,0.00043835,120]
[330497720,1719515442799,-1593.51,0.00043835,120]
[330497721,1719515442808,-500.0,0.00043835,120]
[330497722,1719515442818,-500.0,0.00043835,120]
[330497723,1719515442827,-500.0,0.00043835,120]
[330497724,1719515442837,-500.0,0.00043835,120]
[330497725,1719515442847,-501.54521229,0.00043835,120]
[330497726,1719515442856,-500.0,0.00043835,120]
[330497727,1719515442866,-500.0,0.00043835,120]
[330497728,1719515442875,-500.0,0.00043835,120]
[330497729,1719515442885,-500.0,0.00043835,120]
[330497730,1719515442895,-151.194655,0.00043835,14]
[330497731,1719515442905,-151.194655,0.00043835,14]
[330497732,1719515442914,-151.194655,0.00043835,14]
[330497733,1719515442923,-500.0,0.00043835,120]
[330497734,1719515442933,-151.194655,0.00043835,14]
[330497735,1719515442942,-500.0,0.00043835,120]
[330497736,1719515442952,-151.194655,0.00043835,14]
[330497737,1719515442962,-151.194655,0.00043835,14]
[330497738,1719515442972,-151.194655,0.00043835,14]
[330497739,1719515442981,-500.0,0.00043835,120]
[330497740,1719515442991,-151.194663,0.00043835,14]
[330497741,1719515443000,-646.03,0.00043835,120]
[330497742,1719515443009,-500.0,0.00043835,120]
[330497743,1719515443019,-500.0,0.00043835,120]
[330497744,1719515443029,-500.0,0.00043835,120]
[330497745,1719515443038,-500.0,0.00043835,120]
[330497746,1719515443047,-500.0,0.00043835,120]
[330497747,1719515443056,-637.80014207,0.00043835,120]
[330497748,1719515443065,-502.17322731,0.00043835,120]
[330497749,1719515443075,-500.0,0.00043835,120]
[330497750,1719515443084,-500.0,0.00043835,7]
[330497751,1719515443094,-500.0,0.00043835,120]
[330497753,1719515443107,-500.0,0.00043835,120]
[330497755,1719515443116,-500.0,0.00043835,120]
[330497757,1719515443126,-500.0,0.00043835,120]
[330497759,1719515443135,-500.0,0.00043835,120]
[330497761,1719515443148,-500.0,0.00043835,120]
[330497762,1719515443157,-500.0,0.00043835,120]
[330497764,1719515443170,-500.0,0.00043835,120]
[330497766,1719515443183,-500.0,0.00043835,120]
[330497768,1719515443193,-423.94265898,0.00043835,120]
[330497770,1719515443202,-500.0,0.00043835,120]
[330497772,1719515443212,-500.0,0.00043835,120]
[330497774,1719515443222,-500.0,0.00043835,120]
[330497776,1719515443232,-500.0,0.00043835,120]
[330497778,1719515443242,-500.0,0.00043835,120]
[330497780,1719515443251,-500.0,0.00043835,120]
[330497782,1719515443261,-500.0,0.00043835,120]
[330497784,1719515443271,-500.0,0.00043835,120]
[330497786,1719515443281,-500.0,0.00043835,120]
[330497788,1719515443291,-497.17993212,0.00043835,120]
[330497789,1719515443303,-503.73739774,0.00043835,120]
[330497790,1719515443312,-500.0,0.00043835,120]
[330497791,1719515443322,-500.0,0.00043835,120]
[330497792,1719515443332,-500.0,0.00043835,120]
[330497793,1719515443342,-500.0,0.00043835,120]
[330497794,1719515443351,-500.0,0.00043835,120]
[330497795,1719515443360,-500.0,0.00043835,120]
[330497796,1719515443370,-500.0,0.00043835,120]
[330497797,1719515443379,-500.0,0.00043835,120]
[330497798,1719515443388,-548.57876631,0.00043835,120]
[330497799,1719515443397,-500.0,0.00043835,120]
[330497800,1719515443407,-500.0,0.00043835,120]
[330497801,1719515443416,-500.0,0.00043835,120]
[330497803,1719515443425,-899.39,0.00043835,120]
[330497805,1719515443434,-500.0,0.00043835,120]
[330497806,1719515443444,-1357.84,0.00043835,120]
[330497807,1719515443453,-1880.12,0.00043835,120]
[330497808,1719515443461,-500.0,0.00043835,120]
[330497809,1719515443470,-500.0,0.00043835,120]
[330497810,1719515443479,-500.0,0.00043835,20]
[330497811,1719515443488,-601.01853106,0.00043835,120]
[330497812,1719515443497,-538.94226023,0.00043835,120]
[330497813,1719515443506,-500.0,0.00043835,120]
[330497814,1719515443515,-500.0,0.00043835,120]
[330497815,1719515443524,-500.0,0.00043835,120]
[330497816,1719515443534,-500.0,0.00043835,120]
[330497817,1719515443543,-500.0,0.00043835,120]
[330497818,1719515443552,-968.53,0.00043835,120]
[330497819,1719515443562,-500.0,0.00043835,120]
[330497820,1719515443571,-500.58219451,0.00043835,120]
[330497821,1719515443580,-500.0,0.00043835,120]
[330497822,1719515443589,-500.0,0.00043835,120]
[330497823,1719515443598,-562.29,0.00043835,120]
[330497824,1719515443607,-500.0,0.00043835,120]
[330497825,1719515443616,-500.0,0.00043835,120]
[330497826,1719515443625,-500.0,0.00043835,120]
[330497827,1719515443741,-507.15160351,0.00043835,120]
[330497828,1719515443751,-500.25186307,0.00043835,120]
[330497829,1719515443761,-500.0,0.00043835,2]
[330497830,1719515443771,-861.66,0.00043835,120]
[330497831,1719515443781,-500.0,0.00043835,120]
[330497832,1719515443791,-968.73,0.00043835,120]
[330497833,1719515443800,-500.0,0.00043835,120]
[330497834,1719515443811,-500.0,0.00043835,120]
[330497835,1719515443820,-500.0,0.00043835,120]
[330497836,1719515443831,-510.69232366,0.00043835,120]
[330497838,1719515443841,-500.0,0.00043835,120]
[330497839,1719515443850,-500.0,0.00043835,120]
[330497841,1719515443860,-500.0,0.00043835,120]
[330497843,1719515443869,-502.52353985,0.00043835,120]
[330497845,1719515443879,-558.12378708,0.00043835,120]
[330497847,1719515443890,-500.0,0.00043835,120]
[330497848,1719515443900,-500.0,0.00043835,120]
[330497850,1719515443909,-652.09,0.00043835,2]
[330497852,1719515443918,-500.0,0.00043835,120]
[330497854,1719515443927,-797.71,0.00043835,120]
[330497855,1719515443937,-500.0,0.00043835,120]
[330497856,1719515443946,-500.0,0.00043835,120]
[330497857,1719515443956,-500.0,0.00043835,120]
[330497858,1719515443965,-644.24,0.00043835,120]
[330497859,1719515443974,-500.0,0.00043835,120]
[330497860,1719515443983,-500.0,0.00043835,120]
[330497861,1719515443993,-500.0,0.00043835,120]
[330497862,1719515444002,-579.86,0.00043835,120]
[330497863,1719515444011,-504.40073466,0.00043835,120]
[330497864,1719515444021,-500.0,0.00043835,120]
[330497865,1719515444030,-614.1,0.00043835,120]
[330497866,1719515444039,-500.0,0.00043835,120]
[330497867,1719515444048,-500.0,0.00043835,120]
[330497869,1719515444057,-500.0,0.00043835,120]
[330497871,1719515444066,-500.0,0.00043835,120]
[330497873,1719515444075,-500.0,0.00043835,120]
[330497875,1719515444085,-151.0,0.00043835,14]
[330497876,1719515444094,-506.93684033,0.00043835,120]
[330497877,1719515444104,-512.26373708,0.00043835,120]
[330497878,1719515444118,-151.0,0.00043835,14]
[330497879,1719515444127,-151.0,0.00043835,14]
[330497880,1719515444138,-500.0,0.00043835,120]
[330497881,1719515444147,-512.92531967,0.00043835,120]
[330497882,1719515444158,-500.0,0.00043835,120]
[330497883,1719515444167,-503.22205241,0.00043835,120]
[330497884,1719515444176,-500.0,0.00043835,120]
[330497885,1719515444186,-256.54180792,0.00043835,120]
[330497886,1719515444197,-500.0,0.00043835,120]
[330497887,1719515444206,-500.0,0.00043835,120]
[330497888,1719515444216,-500.0,0.00043835,120]
[330497889,1719515444225,-500.0,0.00043835,30]
[330497890,1719515444234,-500.0,0.00043835,120]
[330497891,1719515444244,-242.39282278,0.00043835,120]
[330497892,1719515444253,-500.0,0.00043835,120]
[330497893,1719515444262,-500.0,0.00043835,120]
[330497894,1719515444271,-500.0,0.00043835,120]
[330497895,1719515444280,-500.0,0.00043835,120]
[330497896,1719515444289,-503.28753766,0.00043835,120]
[330497897,1719515444299,-500.0,0.00043835,120]
[330497898,1719515444308,-500.0,0.00043835,120]
[330497899,1719515444318,-157.59667297,0.00043835,120]
[330497900,1719515444328,-500.0,0.00043835,120]
[330497901,1719515444337,-500.0,0.00043835,120]
[330497902,1719515444347,-550.25033089,0.00043835,120]
[330497903,1719515444356,-500.0,0.00043835,120]
[330497904,1719515444365,-500.0,0.00043835,120]
[330497905,1719515444374,-162.33352688,0.00043835,120]
[330497906,1719515444383,-500.0,0.00043835,120]
[330497907,1719515444394,-500.0,0.00043835,120]
[330497908,1719515444403,-500.0,0.00043835,120]
[330497909,1719515444412,-500.0,0.00043835,120]
[330497910,1719515444421,-500.0,0.00043835,120]
[330497911,1719515444430,-500.0,0.00043835,120]
[330497912,1719515444439,-500.0,0.00043835,120]
[330497913,1719515444449,-500.0,0.00043835,120]
[330497914,1719515444458,-500.0,0.00043835,120]
[330497915,1719515444467,-500.0,0.00043835,120]
[330497916,1719515444476,-500.0,0.00043835,120]
[330497917,1719515444485,-500.0,0.00043835,120]
[330497918,1719515444495,-500.0,0.00043835,120]
[330497919,1719515444505,-254.64833213,0.00043835,120]
[330497920,1719515444514,-500.0,0.00043835,120]
[330497921,1719515444523,-707.06,0.00043835,120]
[330497922,1719515444532,-500.0,0.00043835,120]
[330497923,1719515444541,-500.0,0.00043835,120]
[330497924,1719515444551,-500.0,0.00043835,120]
[330497925,1719515444560,-500.0,0.00043835,120]
[330497926,1719515444570,-500.0,0.00043835,120]
[330497927,1719515444580,-500.0,0.00043835,120]
[330497928,1719515444589,-500.0,0.00043835,120]
[330497929,1719515444600,-500.0,0.00043835,120]
[330497930,1719515444610,-500.0,0.00043835,120]
[330497931,1719515444620,-500.0,0.00043835,120]
[330497932,1719515444630,-500.0,0.00043835,120]
[330497933,1719515444641,-500.0,0.00043835,120]
[330497934,1719515444650,-500.0,0.00043835,120]
[330497935,1719515444660,-500.0,0.00043835,120]
[330497936,1719515444669,-500.0,0.00043835,120]
[330497937,1719515444678,-505.89688802,0.00043835,120]
[330497938,1719515444688,-500.0,0.00043835,120]
[330497939,1719515444698,-500.0,0.00043835,2]
[330497940,1719515444707,-759.06,0.00043835,120]
[330497941,1719515444716,-522.34612288,0.00043835,120]
[330497942,1719515444726,-500.0,0.00043835,120]
[330497943,1719515444735,-500.0,0.00043835,120]
[330497944,1719515444744,-500.0,0.00043835,120]
[330497945,1719515444754,-589.16,0.00043835,120]
[330497946,1719515444763,-176.34403504,0.00043835,120]
[330497947,1719515444772,-500.0,0.00043835,120]
[330497948,1719515444781,-2732.62,0.00043835,120]
[330497949,1719515444791,-500.0,0.00043835,120]
[330497950,1719515444800,-500.0,0.00043835,120]
[330497951,1719515444810,-496.13989501,0.00043835,120]
[330497952,1719515444820,-517.42835497,0.00043835,120]
[330497953,1719515444830,-542.15,0.00043835,120]
[330497954,1719515444840,-500.0,0.00043835,120]
[330497955,1719515444850,-506.4309194,0.00043835,120]
[330497956,1719515444860,-500.0,0.00043835,120]
[330497957,1719515444869,-500.0,0.00043835,120]
[330497958,1719515444879,-500.0,0.00043835,120]
[330497959,1719515444890,-500.0,0.00043835,120]
[330497960,1719515444899,-500.0,0.00043835,120]
[330497961,1719515444908,-304.18809568,0.00043835,120]
[330497962,1719515444918,-500.0,0.00043835,120]
[330497963,1719515444928,-500.0,0.00043835,120]
[330497964,1719515444937,-500.0,0.00043835,120]
[330497965,1719515444946,-500.0,0.00043835,25]
[330497966,1719515444956,-183.29804001,0.00043835,120]
[330497967,1719515444982,-316.70195999,0.00043835,120]
[330497968,1719515444991,-500.0,0.00043835,120]
[330497969,1719515445001,-190.98761395,0.00043835,120]
[330497970,1719515445740,-151.0,0.0004,7]
[330497971,1719515445749,-151.0,0.0004,7]
[330497972,1719515445758,-13.16794504,0.00042,14]
[330497973,1719515445855,-137.83205496,0.00042,14]
[330497974,1719515445865,-151.0,0.00043287,14]
[330497975,1719515445875,-77.56676235,0.00043835,120]
[330497991,1719515446835,-500.0,0.00041095,120]
[330497992,1719515446844,-154.82195475,0.00041314,4]
[330497993,1719515446854,-4752.85,0.00043825,3]
[330497994,1719515446863,-262.85856381,0.00043835,120]
[330497995,1719515446873,-500.0,0.00043835,120]
[330497996,1719515446882,-500.0,0.00043835,120]
[330497997,1719515446892,-501.03682301,0.00043835,120]
[330497998,1719515446901,-1000.0,0.00043835,120]
[330497999,1719515446910,-501.89,0.00043835,120]
[330498000,1719515446920,-510.82877225,0.00043835,120]
[330498001,1719515446929,-737.19,0.00043835,120]
[330498002,1719515446939,-509.56,0.00043835,120]
[330498003,1719515446949,-500.0,0.00043835,120]
[330498004,1719515446958,-500.0,0.00043835,120]
[330498005,1719515446967,-500.0,0.00043835,120]
[330498006,1719515446976,-500.0,0.00043835,120]
[330498007,1719515446986,-500.0,0.00043835,120]
[330498008,1719515446995,-500.0,0.00043835,120]
[330498009,1719515447004,-521.57412628,0.00043835,120]
[330498010,1719515447013,-500.0,0.00043835,120]
[330498011,1719515447023,-526.339621,0.00043835,120]
[330498012,1719515447032,-7805.25,0.00043835,120]
[330498013,1719515447041,-431.94792978,0.00043835,120]
[330498014,1719515447051,-500.0,0.00043835,120]
[330498015,1719515447061,-871.64,0.00043835,120]
[330498016,1719515447071,-500.0,0.00043835,120]
[330498017,1719515447080,-500.0,0.00043835,120]
[330498018,1719515447090,-520.17,0.00043835,120]
[330498019,1719515447101,-500.0,0.00043835,120]
[330498020,1719515447110,-500.0,0.00043835,120]
[330498021,1719515447123,-500.0,0.00043835,120]
[330498022,1719515447133,-500.0,0.00043835,120]
[330498023,1719515447143,-500.0,0.00043835,120]
[330498024,1719515447153,-502.23796181,0.00043835,120]
[330498025,1719515447162,-628.7,0.00043835,120]
[330498027,1719515447172,-743.77,0.00043835,120]
[330498029,1719515447183,-504.49468088,0.00043835,120]
[330498031,1719515447193,-500.0,0.00043835,120]
[330498032,1719515447203,-500.0,0.00043835,120]
[330498034,1719515447213,-1155.89,0.00043835,120]
[330498036,1719515447223,-500.0,0.00043835,120]
[330498037,1719515447232,-500.0,0.00043835,120]
[330498038,1719515447243,-500.0,0.00043835,120]